bitfinex/quotes_ETHUSD_20240621
["timestamp","ask_amount","ask_price","bid_price","bid_amount"]
[1718930694580,2.3822,3517.7,3516.9,3.0]
[1718930694897,0.49245085,3517.6,3516.9,3.0]
[1718930695763,0.49245277,3517.6,3516.9,3.0]
[1718930697287,0.49245277,3517.6,3516.9,5.2709]
[1718930697461,2.3822,3518.1,3517.0,0.875]
[1718930697462,1.36745277,3518.0,3517.0,0.875]
[1718930697667,1.36745277,3518.0,3517.1,1.25205191]
[1718930698182,0.49245277,3518.0,3517.6,0.875]
[1718930698378,4.0,3517.7,3517.6,0.875]
[1718930698600,0.49245277,3517.7,3517.6,0.875]
[1718930698798,0.875,3518.6,3517.6,0.875]
[1718930699201,0.09168451,3518.5,3517.6,0.875]
[1718930699418,0.875,3518.6,3517.7,1.02496191]
[1718930699900,0.49230788,3518.7,3517.7,1.02496191]
[1718930700104,0.875,3518.5,3517.7,1.02496191]
[1718930700448,0.875,3518.3,3517.5,3.0]
[1718930702413,0.875,3517.9,3517.5,3.0]
[1718930703023,0.09190618,3517.8,3517.5,3.0]
[1718930703407,0.23783183,3517.8,3516.9,3.0]
[1718930703607,4.875,3517.6,3516.9,3.0]
[1718930703814,7.2572,3517.6,3516.9,3.0]
[1718930704011,0.58415395,3517.5,3516.9,3.0]
[1718930704605,4.0,3517.4,3516.9,3.0]
[1718930704925,0.49235034,3517.3,3516.9,3.0]
[1718930705096,0.875,3517.2,3516.9,3.0]
[1718930705292,0.09171098,3517.1,3516.6,3.0]
[1718930705494,4.7841354,3517.4,3516.6,3.0]
[1718930705826,1.30084836,3517.3,3516.5,3.0]
[1718930706005,0.80834452,3517.3,3516.5,3.0]
[1718930706193,1.30087255,3517.3,3516.5,3.0]
[1718930707007,0.58423901,3517.3,3516.5,3.0]
[1718930707215,0.58423901,3517.3,3516.6,2.2709]
[1718930707622,0.58423901,3517.3,3516.5,3.0]
[1718930707623,2.3822,3517.2,3516.5,3.0]
[1718930707836,4.0,3517.0,3516.5,3.0]
[1718930708038,0.8975728,3516.9,3515.9,3.0]
[1718930708326,1.39019475,3516.9,3515.9,3.0]
[1718930708525,0.09134035,3516.8,3515.9,3.0]
[1718930708727,4.0,3516.6,3515.9,3.0]
[1718930708932,0.49262195,3516.5,3515.9,3.0]
[1718930709094,0.58364452,3516.5,3515.9,3.0]
[1718930709730,4.0,3516.4,3515.9,3.0]
[1718930709893,0.49262195,3516.3,3515.9,3.0]
[1718930710096,0.49262195,3516.3,3515.9,4.16455191]
[1718930710321,0.09102257,3516.2,3515.8,3.0]
[1718930710509,0.09102257,3516.2,3515.7,2.2709]
[1718930710709,0.49262195,3516.3,3515.7,2.2709]
[1718930710909,0.49262195,3516.3,3515.8,0.52709]
[1718930711230,0.49262195,3516.3,3515.8,3.52709]
[1718930711231,0.49257384,3516.3,3515.8,3.52709]
[1718930713934,0.49257384,3516.3,3515.8,1.23784083]
[1718930714133,2.101,3515.9,3515.3,1.139954]
[1718930714351,4.0,3516.0,3514.2,6.37461913]
[1718930714352,2.101,3515.5,3514.2,6.37461913]
[1718930714529,0.2101,3515.4,3514.3,0.86455191]
[1718930714846,0.49278623,3515.8,3514.1,2.2709]
[1718930715014,0.09104905,3515.3,3514.1,2.2709]
[1718930715207,4.0,3515.3,3514.1,2.2709]
[1718930715411,0.58383528,3515.2,3514.1,2.2709]
[1718930715617,0.58383528,3515.2,3514.2,0.22709]
[1718930716152,0.09104905,3515.2,3514.2,0.22709]
[1718930716344,0.09104905,3515.2,3513.6,1.140376]
[1718930716345,2.3822,3515.1,3513.6,1.140376]
[1718930716512,2.101,3514.3,3513.0,6.37461913]
[1718930716717,0.30076821,3514.2,3512.9,2.2709]
[1718930716914,0.09066821,3514.2,3512.9,2.2709]
[1718930717223,0.4929537,3514.7,3512.9,2.2709]
[1718930717447,4.0,3514.0,3512.9,2.2709]
[1718930717849,0.09064835,3513.9,3512.9,2.2709]
[1718930718027,0.09064835,3513.9,3513.0,0.22709]
[1718930719496,0.09064835,3513.9,3512.5,3.0]
[1718930719661,0.09064835,3513.9,3512.4,2.2709]
[1718930719834,0.09064835,3513.9,3512.0,2.2709]
[1718930720174,0.09064835,3513.9,3512.1,0.02203948]
[1718930720334,4.0,3513.8,3512.1,0.02203948]
[1718930720533,4.0,3513.8,3512.2,0.22929395]
[1718930720534,1.19006484,3513.7,3512.2,0.22929395]
[1718930720738,1.28010992,3513.7,3512.3,0.02204058]
[1718930720987,1.28010992,3513.7,3512.2,0.22929395]
[1718930720988,0.09004508,3513.7,3512.2,0.22929395]
[1718930722172,4.0,3513.6,3512.3,6.92461913]
[1718930722390,4.0,3513.6,3512.4,3.0]
[1718930722893,4.0,3513.6,3512.4,5.101]
[1718930723032,4.0,3513.6,3512.5,1.22549131]
[1718930724041,4.0,3513.6,3512.6,0.55]
[1718930724967,4.0,3513.6,3512.7,2.2709]
[1718930725155,4.0,3513.6,3512.7,5.2709]
[1718930725466,3.40561209,3513.6,3512.8,2.101]
[1718930725644,3.40561209,3513.6,3512.9,0.79219]
[1718930726045,2.3822,3514.5,3513.0,0.55]
[1718930726270,2.101,3515.1,3513.1,6.37461913]
[1718930726271,0.0890345,3513.5,3513.1,6.37461913]
[1718930726449,2.3822,3514.9,3513.1,6.37461913]
[1718930726450,2.3822,3514.9,3513.2,6.72268091]
[1718930726649,2.3822,3514.9,3513.4,6.37461913]
[1718930726850,2.3822,3514.9,3513.5,3.0]
[1718930729551,2.3822,3514.9,3513.6,0.55]
[1718930729752,2.3822,3514.9,3513.7,0.99246191]
[1718930730977,2.3822,3515.8,3514.0,2.101]
[1718930731222,0.08931966,3514.8,3514.2,6.37461913]
[1718930731404,2.3822,3515.8,3514.3,0.84756191]
[1718930731690,0.08945556,3514.7,3514.4,6.37461913]
[1718930731855,2.3822,3515.8,3514.5,3.0]
[1718930732053,2.3822,3515.8,3514.5,9.37461913]
[1718930732259,0.08945556,3515.7,3514.5,9.37461913]
[1718930732476,2.3822,3515.5,3514.5,9.37461913]
[1718930732662,0.41806556,3515.4,3514.5,9.37461913]
[1718930732881,0.50767689,3515.4,3514.5,9.37461913]
[1718930734391,0.50767689,3515.4,3514.5,9.37461913]
[1718930735264,2.3822,3515.3,3514.5,9.37461913]
[1718930735672,2.3822,3515.1,3514.5,9.37461913]
[1718930735875,2.3822,3515.1,3514.5,3.0]
[1718930736060,0.08998918,3515.0,3514.2,3.0]
[1718930736475,2.3822,3515.1,3514.2,3.0]
[1718930736695,0.23822,3515.0,3514.2,3.0]
[1718930737199,0.73106918,3515.0,3514.2,3.0]
[1718930737399,0.08976384,3514.9,3514.2,3.0]
[1718930741594,1.22392111,3515.0,3514.2,3.0]
[1718930741778,0.08969755,3514.8,3514.2,3.0]
[1718930741976,0.98568423,3515.0,3514.2,3.93746191]
[1718930742406,0.49285066,3515.0,3514.2,3.93746191]
[1718930744488,0.49285066,3515.0,3514.3,2.15789844]
[1718930744675,0.49285066,3515.0,3514.3,2.101]
[1718930745093,0.49285066,3515.0,3514.4,2.2709]
[1718930745297,0.49285066,3515.0,3514.5,0.83093619]
[1718930745510,0.49285066,3515.0,3514.5,3.83093619]
[1718930746475,0.05091605,3515.0,3514.5,3.83093619]
[1718930753504,0.49268734,3515.7,3514.5,3.83093619]
[1718930754488,0.49269439,3515.7,3514.5,3.83093619]
[1718930754695,0.49269439,3515.7,3514.6,0.82028362]
[1718930754891,0.49269484,3515.7,3514.6,0.82028362]
[1718930755299,2.3822,3515.8,3514.6,0.82028362]
[1718930755505,0.49269399,3515.7,3514.6,0.82028362]
[1718930757615,2.3822,3515.8,3514.6,0.82028362]
[1718930757815,0.49269336,3515.7,3514.7,1.45668027]
[1718930760795,0.49272141,3515.7,3514.6,3.0]
[1718930762002,0.49272141,3515.7,3514.7,2.2709]
[1718930762203,0.49272141,3515.7,3514.7,5.2709]
[1718930762635,0.49272141,3516.0,3514.7,2.2709]
[1718930762801,0.49272141,3516.0,3514.8,1.37465191]
[1718930763007,0.49272141,3516.0,3514.8,4.37465191]
[1718930764036,0.4926687,3516.0,3514.8,4.37465191]
[1718930765239,0.4926687,3516.3,3515.0,2.2709]
[1718930765398,0.09044637,3515.9,3515.1,0.87465519]
[1718930765598,0.4926687,3516.5,3515.1,3.87465519]
[1718930765814,0.4926687,3516.5,3515.1,10.24927432]
[1718930766014,0.4926687,3516.5,3515.2,1.46211743]
[1718930767018,0.49259964,3516.5,3515.2,1.46211743]
[1718930770032,0.49260231,3516.5,3515.2,1.46211743]
[1718930772634,0.49260231,3516.5,3515.3,4.3719]
[1718930772840,0.49260231,3516.5,3515.4,3.0]
[1718930772841,0.35060231,3516.5,3515.4,3.0]
[1718930773024,2.3822,3516.9,3515.5,1.11098274]
[1718930773223,2.3822,3516.9,3515.6,2.2709]
[1718930773422,0.09076763,3516.8,3515.6,5.2709]
[1718930773623,2.3542,3516.9,3515.7,0.63818827]
[1718930773826,0.09076763,3516.7,3515.7,3.63818827]
[1718930774017,2.3542,3516.9,3515.7,3.63818827]
[1718930774218,0.09076763,3516.6,3515.7,3.63818827]
[1718930774417,2.3542,3516.9,3515.8,0.7020071]
[1718930774827,2.15935139,3516.8,3515.8,0.7020071]
[1718930775037,2.06858376,3516.7,3515.8,0.7020071]
[1718930775238,2.15952687,3516.7,3515.8,0.7020071]
[1718930775444,2.06858376,3516.6,3515.8,0.7020071]
[1718930775639,2.06858376,3516.6,3515.9,0.59729071]
[1718930775960,1.709,3517.5,3515.9,0.59729071]
[1718930775961,2.15952687,3516.5,3515.9,0.59729071]
[1718930776127,0.09094311,3516.5,3516.0,2.2709]
[1718930776312,7.4,3518.5,3516.1,0.51436107]
[1718930776678,2.3822,3517.6,3516.3,6.37461913]
[1718930776950,2.06831791,3517.5,3516.4,3.0]
[1718930777148,2.06831791,3517.5,3516.5,0.93746191]
[1718930777323,0.09100934,3517.4,3516.5,0.93746191]
[1718930777506,2.06831791,3517.3,3516.5,0.93746191]
[1718930778015,2.06831791,3517.2,3516.5,0.93746191]
[1718930778209,2.06831791,3517.1,3516.5,0.93746191]
[1718930778409,2.3822,3517.6,3516.5,0.93746191]
[1718930778610,2.06835284,3517.5,3516.5,0.93746191]
[1718930779032,0.09100934,3517.4,3516.5,0.93746191]
[1718930779227,2.62042,3517.6,3516.5,0.93746191]
[1718930779438,2.62042,3517.6,3516.4,3.0]
[1718930779439,2.06833622,3517.5,3516.4,3.0]
[1718930779642,2.15934556,3517.5,3516.4,3.0]
[1718930779814,2.06833622,3517.4,3516.4,3.0]
[1718930780217,2.06833622,3517.3,3516.4,3.0]
[1718930780417,2.06833622,3517.2,3516.4,3.0]
[1718930780627,2.06833622,3517.1,3516.4,3.0]
[1718930780846,2.3822,3517.0,3516.4,3.0]
[1718930781027,2.06833622,3516.9,3516.4,3.0]
[1718930781712,2.3822,3517.4,3516.4,3.0]
[1718930781949,0.09114506,3516.8,3516.4,3.93746191]
[1718930782131,2.3822,3517.4,3516.4,3.0]
[1718930782321,2.06858864,3517.3,3516.0,5.2709]
[1718930782643,2.15979327,3517.3,3516.0,5.2709]
[1718930782843,2.52278797,3517.2,3516.0,7.72318098]
[1718930783037,2.56111082,3517.1,3516.0,7.72318098]
[1718930783242,2.06858864,3517.0,3516.0,7.72318098]
[1718930784818,2.56111082,3517.0,3516.0,7.72318098]
[1718930785032,2.06858864,3516.9,3516.0,7.72318098]
[1718930785331,0.49252218,3517.3,3516.1,2.69750908]
[1718930785525,2.06856784,3517.2,3516.2,3.0]
[1718930788628,2.0685533,3517.1,3516.2,3.0]
[1718930788832,2.06855352,3517.0,3516.2,3.0]
[1718930789233,2.06855352,3516.9,3516.2,3.0]
[1718930789543,2.06855352,3516.8,3516.2,3.0]
[1718930789853,2.06855352,3516.7,3516.0,5.2709]
[1718930790053,2.06855352,3516.6,3516.0,5.2709]
[1718930790220,2.06855352,3516.5,3516.0,5.2709]
[1718930790420,2.06862244,3516.4,3516.0,7.72318098]
[1718930790619,0.49251274,3517.1,3516.0,7.72318098]
[1718930790831,2.06862628,3517.0,3516.0,7.72318098]
[1718930791030,2.06862628,3516.9,3516.0,7.72318098]
[1718930791249,2.06862628,3516.8,3516.0,7.72318098]
[1718930791428,0.49251274,3517.1,3516.1,2.69750908]
[1718930791429,2.06862628,3516.7,3516.1,2.69750908]
[1718930791763,2.3822,3516.7,3516.2,3.0]
[1718930791921,2.56136863,3516.6,3516.0,3.0]
[1718930792125,2.06879774,3516.5,3516.0,3.0]
[1718930792553,2.57227474,3516.5,3516.0,3.0]
[1718930792764,2.65256995,3516.4,3515.7,3.0]
[1718930792960,2.06879774,3516.3,3515.7,3.0]
[1718930794339,4.0,3516.2,3515.7,3.0]
[1718930794545,2.56136863,3516.1,3515.7,3.0]
[1718930794770,2.06879774,3516.0,3515.7,3.0]
[1718930795040,2.06879774,3516.0,3515.1,3.0]
[1718930795041,2.0692386,3515.9,3515.1,3.0]
[1718930795240,4.0,3515.8,3515.1,3.0]
[1718930795577,2.56194656,3515.7,3515.1,3.0]
[1718930795730,2.0692386,3515.6,3515.1,3.0]
[1718930795931,2.15990026,3515.6,3515.1,3.0]
[1718930796129,2.0692386,3515.5,3515.1,3.0]
[1718930796373,2.0692386,3515.5,3515.1,0.52709]
[1718930796555,2.0692386,3515.4,3515.1,3.52709]
[1718930796767,2.0692386,3515.3,3515.1,3.52709]
[1718930796957,2.06933088,3515.2,3515.1,3.52709]
[1718930797129,0.49270796,3515.7,3515.1,3.0]
[1718930797331,0.09051926,3515.2,3515.0,2.2709]
[1718930797531,0.49270796,3515.7,3515.0,2.2709]
[1718930797731,2.06932503,3515.6,3515.1,0.52709]
[1718930797931,4.0,3515.8,3515.1,3.52709]
[1718930798160,0.49268962,3515.7,3515.1,3.52709]
[1718930798340,2.56198157,3515.7,3515.1,3.52709]
[1718930798534,2.06929195,3515.6,3515.1,3.52709]
[1718930798745,2.06929195,3515.6,3515.2,0.579799]
[1718930801062,4.0,3515.8,3515.2,0.579799]
[1718930801370,2.56182833,3515.7,3515.2,0.579799]
[1718930801548,2.06916899,3515.6,3515.2,0.579799]
[1718930802967,2.06916899,3515.6,3515.1,3.0]
[1718930803167,2.06916899,3515.6,3515.0,2.2709]
[1718930804283,4.0,3515.8,3515.0,2.2709]
[1718930804454,0.49268433,3515.6,3515.0,2.2709]
[1718930804660,2.0692742,3515.5,3515.0,2.2709]
[1718930804893,2.0692742,3515.4,3515.0,3.64555191]
[1718930805047,2.0692742,3515.3,3515.1,3.0]
[1718930805242,2.0692742,3515.2,3515.1,3.0]
[1718930805546,0.09051263,3515.2,3515.1,3.0]
[1718930805751,0.09051263,3515.2,3515.0,2.2709]
[1718930805955,0.49268433,3515.7,3515.1,0.52709]
[1718930806160,2.06930816,3515.6,3515.1,3.0]
[1718930806686,2.06930816,3515.6,3515.0,2.2709]
[1718930807356,4.0,3515.8,3515.0,2.2709]
[1718930807539,2.56197751,3515.7,3515.0,2.2709]
[1718930807743,2.06928953,3515.6,3515.0,2.2709]
[1718930807972,2.06928953,3515.6,3515.0,3.64555191]
[1718930808187,2.06928953,3515.6,3515.1,3.0]
[1718930810572,2.06927317,3515.5,3515.1,3.0]
[1718930810875,2.06927317,3515.4,3515.1,3.0]
[1718930811080,2.06927317,3515.3,3515.1,3.0]
[1718930811245,0.49268408,3515.7,3515.1,3.0]
[1718930811448,2.06925821,3515.6,3515.1,3.876]
[1718930811647,2.15972114,3515.6,3515.1,3.876]
[1718930811847,2.06925821,3515.5,3515.1,3.876]
[1718930812372,0.0874496,3515.4,3515.1,3.876]
[1718930812570,2.06927604,3515.3,3515.1,3.0]
[1718930812881,0.0874496,3515.2,3514.8,3.0]
[1718930813189,2.06927604,3515.3,3514.8,3.0]
[1718930813190,2.06927604,3515.1,3514.8,3.0]
[1718930813394,2.06927604,3515.0,3514.5,0.876]
[1718930814062,2.06964009,3514.9,3514.5,0.876]
[1718930814257,2.06964009,3514.8,3514.5,0.876]
[1718930814580,0.49277145,3515.2,3514.5,0.876]
[1718930814778,2.06964027,3515.1,3514.5,0.876]
[1718930815074,2.06964027,3515.0,3514.5,0.876]
[1718930815453,2.15692094,3514.9,3514.4,3.0]
[1718930815654,0.49277145,3515.3,3514.4,3.0]
[1718930815866,0.08728067,3514.8,3514.4,3.0]
[1718930816186,0.49277145,3515.5,3514.4,3.0]
[1718930816379,2.06964482,3515.4,3514.4,3.0]
[1718930816584,2.06964482,3515.3,3514.4,3.0]
[1718930816765,2.56241627,3515.3,3514.4,3.0]
[1718930816976,2.06964482,3515.2,3514.4,3.0]
[1718930817166,2.06964591,3515.1,3514.4,3.0]
[1718930817371,0.58005352,3515.2,3514.4,5.39255191]
[1718930817566,2.069646,3515.1,3514.4,5.39255191]
[1718930817878,2.069646,3515.0,3514.4,5.39255191]
[1718930818079,2.06964588,3514.9,3514.4,5.39255191]
[1718930818281,0.49277282,3515.3,3514.4,5.39255191]
[1718930818484,0.08728067,3514.8,3514.4,5.39255191]
[1718930818656,0.49277282,3515.3,3514.4,5.39255191]
[1718930818982,0.08704214,3514.7,3514.4,5.39255191]
[1718930819156,0.49277282,3515.3,3514.4,3.0]
[1718930819351,0.55828363,3515.4,3514.4,3.0]
[1718930819352,2.06965123,3515.2,3514.4,3.0]
[1718930819566,2.06965123,3515.1,3514.4,3.0]
[1718930820207,0.49277282,3515.3,3514.4,3.0]
[1718930820208,2.15669337,3515.0,3514.4,3.0]
[1718930820391,2.0696869,3514.9,3514.4,3.0]
[1718930820681,2.0696869,3514.9,3514.4,5.45637391]
[1718930820898,2.06969865,3514.8,3514.1,12.28]
[1718930821081,2.3822,3515.2,3514.0,8.64551913]
[1718930821082,2.06969865,3514.7,3514.0,6.37461913]
[1718930821255,2.06969865,3514.6,3514.0,6.37461913]
[1718930821457,2.06969865,3514.5,3514.0,6.37461913]
[1718930821763,2.06969865,3514.4,3514.0,6.37461913]
[1718930822074,0.49278259,3514.9,3514.0,6.37461913]
[1718930822274,0.28749826,3515.0,3514.1,3.0]
[1718930822275,0.08689633,3514.3,3514.1,3.0]
[1718930822480,0.49278259,3514.9,3514.1,3.0]
[1718930822670,0.08682343,3514.2,3514.1,3.0]
[1718930822857,0.49278259,3514.8,3514.1,3.0]
[1718930823058,0.08682343,3514.2,3514.1,3.0]
[1718930823272,0.31624809,3514.9,3514.1,3.0]
[1718930823471,0.08682343,3514.2,3514.1,3.0]
[1718930823766,0.49286456,3515.0,3514.1,3.0]
[1718930823971,2.07002621,3514.9,3514.1,3.0]
[1718930824167,2.15684964,3514.9,3514.1,3.0]
[1718930824377,2.07002621,3514.8,3514.1,3.0]
[1718930824986,0.08682343,3514.7,3514.1,3.0]
[1718930825179,2.07002621,3514.6,3514.1,3.0]
[1718930825597,0.0866776,3514.5,3513.8,3.0]
[1718930825895,2.07002621,3514.4,3513.8,4.16455191]
[1718930826268,0.49286456,3514.9,3513.8,4.16455191]
[1718930826464,0.08668091,3514.3,3513.8,4.16455191]
[1718930826676,0.49286456,3514.9,3513.8,4.16455191]
[1718930826994,0.08668091,3514.2,3513.8,4.16455191]
[1718930827200,0.49286456,3514.5,3513.8,4.16455191]
[1718930827425,2.07003361,3514.4,3513.8,4.16455191]
[1718930827694,0.0866776,3514.3,3513.8,3.0]
[1718930827873,2.07003361,3514.2,3513.7,6.37461913]
[1718930828284,0.0866776,3514.1,3513.7,6.37461913]
[1718930828457,0.49286456,3514.5,3513.7,6.37461913]
[1718930828658,2.35772235,3514.4,3513.7,6.37461913]
[1718930828863,4.0,3514.0,3513.1,8.64551913]
[1718930829067,2.56308045,3513.9,3513.1,8.64551913]
[1718930829298,2.07021589,3513.8,3513.1,8.64551913]
[1718930829497,2.15672112,3513.8,3513.1,9.51007104]
[1718930829799,2.15672112,3513.8,3513.1,9.36807104]
[1718930829800,0.57946991,3513.8,3513.1,9.36807104]
[1718930829988,2.07045166,3513.7,3513.1,8.47551913]
[1718930830219,2.07045166,3513.7,3513.2,3.0]
[1718930830391,0.49296468,3513.8,3513.2,3.0]
[1718930830392,0.08650523,3513.6,3513.2,3.0]
[1718930830896,2.07056401,3513.5,3512.8,3.0]
[1718930831098,2.07059859,3513.4,3512.8,3.0]
[1718930831603,0.08606758,3513.3,3512.8,3.0]
[1718930832095,0.68751647,3513.7,3512.8,3.0]
[1718930832296,0.08594488,3513.2,3512.8,3.0]
[1718930832501,0.49296468,3513.6,3512.8,3.0]
[1718930832700,0.68751647,3513.7,3512.7,3.0]
[1718930832701,0.08594488,3513.1,3512.7,3.0]
[1718930832876,0.68751647,3513.7,3512.7,3.0]
[1718930833076,0.08594488,3513.0,3512.7,3.0]
[1718930833381,0.49305216,3513.6,3512.7,3.0]
[1718930833610,2.07084521,3513.5,3512.7,3.0]
[1718930833903,2.34668138,3513.4,3512.7,3.0]
[1718930834108,2.07084521,3513.3,3512.7,3.0]
[1718930834313,2.15679009,3513.3,3512.7,3.0]
[1718930834522,4.0,3512.9,3512.7,3.0]
[1718930835680,4.0,3512.9,3512.6,6.20461913]
[1718930835681,0.08586858,3512.8,3512.6,6.20461913]
[1718930835887,4.0,3512.7,3512.6,6.20461913]
[1718930836084,4.08564967,3512.7,3512.0,20.75551913]
[1718930836318,4.08564967,3512.7,3511.7,6.20461913]
[1718930836530,2.07126726,3512.6,3511.7,8.47551913]
[1718930836733,2.54365423,3512.6,3511.7,8.47551913]
[1718930837031,6.15683066,3512.5,3511.7,8.47551913]
[1718930837200,4.0855634,3512.5,3511.7,8.47551913]
[1718930838132,4.0855634,3512.5,3511.8,3.0]
[1718930838296,4.0855634,3512.5,3511.8,4.14755191]
[1718930838492,4.0,3512.5,3511.9,2.2709]
[1718930838721,4.0,3512.5,3511.8,4.14755191]
[1718930838722,4.0,3512.5,3512.2,2.2709]
[1718930838904,0.08527143,3512.4,3512.3,0.43739]
[1718930839097,3.92353493,3512.4,3512.3,3.0]
[1718930839412,4.00880636,3512.4,3512.3,5.2709]
[1718930839591,4.00880636,3512.4,3512.3,2.2709]
[1718930839791,4.00880636,3512.4,3512.3,3.00829]
[1718930839996,4.00880636,3512.4,3512.3,6.00829]
[1718930840191,2.95195444,3512.4,3512.3,6.00829]
[1718930840612,2.86668301,3512.4,3512.3,6.00829]
[1718930841100,2.95211371,3512.4,3512.3,6.00829]
[1718930841427,2.95211371,3512.4,3512.3,5.2709]
[1718930841735,2.86668301,3512.4,3512.3,5.2709]
[1718930841906,2.95240564,3512.4,3512.3,5.2709]
[1718930842106,2.95240564,3512.4,3512.3,3.0]
[1718930842291,2.86668301,3512.4,3511.9,2.2709]
[1718930842495,2.95240564,3512.4,3511.9,3.00829]
[1718930842692,2.95240564,3512.4,3512.0,3.0]
[1718930844401,2.95240564,3512.4,3511.5,2.2709]
[1718930846435,2.86668301,3512.4,3511.7,2.2709]
[1718930846632,2.86668301,3512.4,3511.8,0.43739]
[1718930846834,0.08530792,3512.3,3511.8,0.43739]
[1718930847001,0.08530792,3512.3,3511.8,3.43739]
[1718930847398,2.86668301,3512.4,3511.8,3.43739]
[1718930847804,0.08530792,3512.3,3511.9,2.2709]
[1718930848000,2.86668301,3512.4,3512.0,0.570829]
[1718930848235,2.86668301,3512.4,3512.0,3.570829]
[1718930848552,2.86668301,3512.4,3512.0,5.673829]
[1718930848837,2.86668301,3512.4,3512.1,2.2709]
[1718930849058,2.86668301,3512.4,3512.1,5.2709]
[1718930849264,2.86668301,3512.4,3512.2,1.0944729]
[1718930849426,2.86668301,3512.4,3512.3,2.2709]
[1718930849624,2.86668301,3512.4,3512.3,5.2709]
[1718930850822,2.86668301,3512.4,3512.3,3.0]
[1718930851064,2.86668301,3512.4,3512.3,5.8209]
[1718930851237,2.86668301,3512.4,3512.3,7.23536819]
[1718930853358,2.3822,3515.0,3512.5,2.2709]
[1718930853573,2.3822,3515.0,3513.2,2.103]
[1718930853574,2.80114959,3514.9,3513.2,2.103]
[1718930853743,2.56292959,3514.8,3513.2,2.103]
[1718930853933,0.49287107,3514.8,3513.2,2.103]
[1718930854136,0.23822,3514.9,3513.2,2.103]
[1718930854350,2.33203142,3514.8,3513.3,0.5103]
[1718930854550,2.33203142,3514.8,3513.4,6.20461913]
[1718930854551,0.49285203,3514.7,3513.4,6.20461913]
[1718930854727,0.262042,3514.8,3513.4,6.20461913]
[1718930854930,0.262042,3514.8,3513.5,3.0]
[1718930855159,0.49285203,3514.9,3513.5,3.0]
[1718930855160,0.3137094,3514.7,3513.5,3.0]
[1718930855744,0.49285203,3514.9,3513.6,2.2709]
[1718930855939,0.49285203,3514.9,3513.6,4.3739]
[1718930856143,2.3822,3515.7,3513.7,3.0]
[1718930856362,2.3822,3515.7,3514.0,8.30761913]
[1718930856363,2.56246366,3515.6,3514.0,8.30761913]
[1718930856662,0.73100147,3515.6,3514.2,2.2709]
[1718930856829,0.23822,3515.6,3514.2,5.2709]
[1718930857035,2.3822,3515.7,3514.3,1.4409281]
[1718930857036,0.262042,3515.5,3514.3,1.4409281]
[1718930857266,0.262042,3515.5,3514.3,4.4409281]
[1718930858162,0.262042,3515.5,3514.4,2.103]
[1718930858360,2.3822,3516.6,3514.4,5.103]
[1718930858561,4.27489869,3516.5,3514.7,6.20461913]
[1718930858746,2.56189869,3516.4,3514.8,3.0]
[1718930858934,2.06922587,3516.3,3514.8,3.0]
[1718930859338,2.33282,3516.5,3514.8,3.0]
[1718930859539,1.231802,3516.4,3514.8,3.0]
[1718930860078,0.681802,3516.4,3514.8,3.0]
[1718930860533,2.3822,3516.2,3514.8,3.0]
[1718930865083,0.08655473,3516.1,3514.8,3.0]
[1718930866583,0.55,3516.0,3514.8,3.0]
[1718930866782,0.47317547,3515.9,3514.8,3.0]
[1718930867087,0.55972687,3515.9,3514.8,3.0]
[1718930871061,2.9322,3515.8,3514.7,6.20461913]
[1718930871257,0.08649177,3515.7,3514.7,6.20461913]
[1718930872287,0.08649177,3515.7,3514.8,3.0]
[1718930873397,0.55,3515.6,3514.8,3.0]
[1718930873581,0.52816918,3515.5,3514.8,3.0]
[1718930873803,0.08641557,3515.4,3514.5,3.0]
[1718930875216,2.3822,3516.3,3514.6,2.2709]
[1718930875632,0.0863957,3516.2,3514.6,2.2709]
[1718930876017,2.3822,3516.3,3514.6,2.2709]
[1718930876228,0.08706533,3516.1,3514.6,2.2709]
[1718930876431,2.3822,3516.3,3514.6,2.2709]
[1718930876752,0.32528533,3516.2,3514.7,1.35785191]
[1718930876916,2.03828533,3516.2,3514.7,3.0]
[1718930877117,1.713,3515.9,3514.5,3.0]
[1718930877322,0.08728399,3515.8,3514.5,3.0]
[1718930877538,1.1785484,3515.7,3514.5,3.0]
[1718930877927,0.08728399,3515.6,3514.5,3.0]
[1718930878819,2.3822,3515.5,3514.5,3.0]
[1718930879319,0.08718129,3515.4,3514.5,3.0]
[1718930884970,0.08718129,3515.4,3514.4,6.20461913]
[1718930884971,2.3822,3515.3,3514.4,6.20461913]
[1718930885173,0.08671739,3515.2,3514.4,6.20461913]
[1718930886346,0.08671739,3515.2,3514.5,3.0]
[1718930886564,4.0,3514.8,3514.5,3.0]
[1718930886747,0.08674059,3514.7,3514.5,3.0]
[1718930886950,0.40867406,3514.6,3514.0,3.0]
[1718930887363,0.08674059,3514.5,3514.0,3.0]
[1718930887952,4.0,3514.4,3514.0,3.0]
[1718930888168,0.08661131,3514.3,3514.0,3.0]
[1718930888346,0.40866113,3514.2,3514.0,3.0]
[1718930888735,0.08661131,3514.1,3513.3,3.0]
[1718930888931,0.40866113,3514.2,3513.3,3.0]
[1718930889130,2.46881131,3514.1,3513.2,6.20461913]
[1718930889329,2.90967742,3514.1,3513.2,6.20461913]
[1718930889957,4.0,3514.0,3513.2,6.20461913]
[1718930890155,0.08627979,3513.9,3513.2,6.20461913]
[1718930890457,0.08627979,3513.9,3513.3,3.0]
[1718930890650,0.77715471,3513.8,3513.3,3.0]
[1718930891175,3.972,3513.7,3513.3,3.0]
[1718930891658,0.08334413,3513.6,3513.3,3.0]
[1718930893861,2.3822,3513.5,3513.3,3.0]
[1718930894104,2.3822,3513.5,3512.7,3.0]
[1718930894105,0.64375441,3513.4,3512.7,3.0]
[1718930894232,0.72691947,3513.4,3512.7,3.0]
[1718930896050,4.0,3513.3,3512.7,3.0]
[1718930896559,0.08316506,3513.2,3512.7,3.0]
[1718930896858,0.47269195,3513.1,3512.7,3.0]
[1718930897440,0.08285659,3513.0,3512.7,3.0]